Cogmind - Beta 9.3 @@@ ROGUE MODE // 2020.01.05 @ 01:09:44 Player: Klin Result: Destroyed by Y-45 Defender with Heavy Assault Rifle Performance ------------- Evolutions (1) 500 Regions Visited (2) 400 Robots Destroyed (34) 170 Value Destroyed (694) 694 Prototype IDs (1) 20 Alien Tech Used (0) 0 Bonus (0) 0 TOTAL SCORE: 1784 Bonus ------- None Cogmind --------- Core Integrity 0/400 Matter 96/300 Energy 100/100 System Corruption 0% Temperature Cool (9) Movement Core (550) Ox10 Location -9/Materials Parts ------- > --- POWER (2) -------- (None) > --- PROPULSION (2) --- (None) > --- UTILITY (3) ------ High-capacity Storage Unit Terrain Scan Processor > --- WEAPON (2) ------- (None) > --- INVENTORY (12) --- Heavy Ion Engine Heavy Ion Engine Heavy Ion Engine Heavy Ion Engine Medium Storage Unit Structural Scanner Peak State ------------ > --- POWER ------------ Heavy Ion Engine Heavy Ion Engine > --- PROPULSION ------- Aluminum Leg Aluminum Leg > --- UTILITY ---------- High-capacity Storage Unit Terrain Scanner Terrain Scan Processor > --- WEAPON ----------- Light Assault Rifle Grenade Launcher > --- INVENTORY -------- Ion Engine Heavy Ion Engine Heavy Ion Engine Heavy Ion Engine Heavy Ion Engine Medium Storage Unit Light Assault Rifle Light Assault Rifle [Rating: 15] Favorites ----------- Power Ion Engine Engine Ion Engine Propulsion Aluminum Leg Leg Aluminum Leg Wheel Wheel Hover Unit Backup Propulsion I Utility High-capacity Storage Unit Device Improved Terrain Scanner Storage High-capacity Storage Unit Processor Terrain Scan Processor Weapon Light Assault Rifle Energy Gun EM Pulse Gun Ballistic Gun Light Assault Rifle Launcher Grenade Launcher Build | -11 -10 -9 ------- Run | Scr Mat Mat Slots Evolved 2 | . . 2 Power 1 | . . 1 Propulsion . | . . . Utility 1 | . . 1 Weapon . | . . . Parts Attached 31 | 10 12 9 Power 9 | 5 1 3 Engine 9 | 5 1 3 Core . | . . . Reactor . | . . . Propulsion 6 | 2 3 1 Treads . | . . . Leg 4 | . 3 1 Wheel 2 | 2 . . Hover . | . . . Flight . | . . . Utility 6 | 1 3 2 Device 4 | 1 1 2 Storage 1 | . 1 . Processor 1 | . 1 . Hackware . | . . . Protection . | . . . Artifact . | . . . Weapon 10 | 2 5 3 Energy Gun 1 | 1 . . Energy Cannon . | . . . Ballistic Gun 8 | 1 4 3 Ballistic Cannon . | . . . Launcher 1 | . 1 . Special Weapon . | . . . Impact Weapon . | . . . Slashing Weapon . | . . . Piercing Weapon . | . . . Special Melee Weapon . | . . . Unidentified Prototypes 1 | . . 1 Parts Lost 13 | . 3 10 Power 3 | . 1 2 Propulsion 3 | . 1 2 Utility 3 | . 1 2 Weapon 4 | . . 4 Highest Loss Streak 6 | . 1 6 Average Slot Usage (%) 92 | . 96 79 Engine 12 | . 11 13 Leg 15 | . 15 17 Wheel 9 | . 12 . Device 11 | . 12 8 Storage 12 | . 13 11 Processor 3 | . . 11 Energy Gun 2 | . 3 . Ballistic Gun 18 | . 20 11 Launcher 4 | . 3 6 Naked Turns . | . . . Heaviest Build 50 | 9 42 50 Greatest Support 20 | 20 20 20 Greatest Overweight (x) 13 | . 6 13 Average Overweight (x) 1 | . 1 2 Largest Inventory Capacity 12 | 4 12 12 Average Capacity 11 | 4 11 12 Most Carried 10 | 4 5 10 Average Carried 3 | 1 3 6 Final Capacity 12 | 4 12 12 Final Carried 6 | 2 3 6 Class Distribution -------------------- 92% | Mutant 7% | Scavenger-Mutant Dominant Class ---------------- Mutant | -10/Materials Mutant | -9/Materials Resources | -11 -10 -9 ----------- Run | Scr Mat Mat Matter Collected 587 | 305 224 58 Remotely . | . . . Salvage Created 804 | 119 498 187 Parts 74 | 9 53 12 Haulers Intercepted 1 | . . 1 Recyclers Shooed 2 | . 2 . Parts Field Recycled . | . . . Retrieved Matter . | . . . Parts Self-Destructed . | . . . Prevented . | . . . Kills | -11 -10 -9 ------- Run | Scr Mat Mat Combat Hostiles Destroyed 22 | 1 15 6 Guns 15 | 1 13 1 AOE 7 | . 2 5 Classes Destroyed 8 | 2 4 2 Worker 1 | . 1 . Builder 5 | . 4 1 Tunneler 3 | 3 . . Hauler 1 | . . 1 Watcher 2 | . 1 1 Swarmer 8 | . 7 1 Grunt 13 | 1 8 4 Sentry 1 | . . 1 Best Kill Streak 7 | 4 7 5 Combat Bots Only 4 | 1 3 4 Max Kills in Single Turn 2 | 1 2 2 Gunslinging . | . . . Exploded 2 | . 1 2 Melee . | . . . Uniques/NPCs Destroyed . | . . . Combat | -11 -10 -9 -------- Run | Scr Mat Mat Damage Taken 1752 | 26 622 1104 Core 523 | 12 96 415 Absorbed by Shields . | . . . Core Remaining (%) 75 | 95 56 . Volleys Fired 80 | 9 46 25 Largest 2 | 2 2 2 Hottest 60 | 60 60 50 Shots Fired 154 | 18 92 44 Gun 136 | 18 85 33 Cannon . | . . . Launcher 18 | . 7 11 Special . | . . . Kinetic 120 | 9 78 33 Thermal . | . . . Explosive 18 | . 7 11 Electromagnetic 16 | 9 7 . Robot Hit Streak 10 | 10 8 6 Robot Miss Streak 6 | 2 6 4 Penetration Max . | . . . Secondary Targets 1 | . 1 . Max Gunslinging Chain 1 | . 1 . Shots Hit Robots 70 | 12 44 14 Core Hits 68 | 8 36 24 Critical Hits . | . . . Critical Kills . | . . . Critical Parts Destroyed . | . . . Melee Attacks . | . . . Impact . | . . . Slashing . | . . . Piercing . | . . . Sneak Attacks . | . . . Combat Hostiles . | . . . Follow-up Attacks . | . . . Damage Inflicted 1672 | 130 899 643 Guns 757 | 124 505 128 Cannons . | . . . Explosions 862 | . 358 504 Melee . | . . . Ramming 53 | 6 36 11 Kinetic 599 | 42 429 128 Thermal . | . . . Explosive 862 | . 358 504 Electromagnetic 158 | 82 76 . Impact . | . . . Slashing . | . . . Piercing . | . . . Highest Corruption . | . . . Average Corruption . | . . . Corruption Purged . | . . . Overload Shots . | . . . Overflow Damage 1 | . 1 . Projectiles . | . . . Explosions 1 | . 1 . Melee . | . . . Knockbacks . | . . . Impact . | . . . Kinetic . | . . . Secondary . | . . . Self-Inflicted Damage 86 | 3 50 33 Shots 2 | . 1 1 Rammed 8 | 2 4 2 Targets Rammed 10 | 2 6 2 Kicked 2 | . 2 . Crushed . | . . . Highest Temperature 58 | 52 58 57 Average Temperature 18 | 27 16 15 Received Heat Transfer 525 | 12 174 339 Siege Activations . | . . . Robots Corrupted . | . . . Combat Hostiles . | . . . Parts Fried . | . . . Impact Corruptions . | . . . Robots Melted . | . . . Combat Hostiles . | . . . Parts Melted . | . . . Heat Transferred . | . . . Parts Sabotaged . | . . . Parts Stolen . | . . . Parts Stripped . | . . . Power Chain Reactions . | . . . Missiles Intercepted . | . . . Alert | -11 -10 -9 ------- Run | Scr Mat Mat Peak Influence 267 | 35 267 249 Average Influence 150 | 15 153 198 Maximum Alert Level 1 | . 1 1 Low Security (%) 57 | 100 61 24 Level 1 42 | . 38 75 Level 2 . | . . . Level 3 . | . . . Level 4 . | . . . Level 5 . | . . . High Security . | . . . Max Security . | . . . Squads Dispatched 5 | . 5 . Investigation 3 | . 3 . Extermination . | . . . Reinforcement 2 | . 2 . Assault . | . . . Garrison . | . . . Intercept . | . . . Construction Impeded . | . . . Haulers Reinforced . | . . . Stealth | -11 -10 -9 --------- Run | Scr Mat Mat Distress Signals 6 | . 3 3 Communications Jammed . | . . . Distress Signals . | . . . Times Spotted 44 | 1 27 16 Peak Tracking Total 5 | 1 5 4 Tactical Retreats 1 | . 1 . Traps | -11 -10 -9 ------- Run | Scr Mat Mat Traps Triggered 2 | . 2 . Indirectly . | . . . Trap Hack Attempts . | . . . Triggered . | . . . Disarmed . | . . . Reprogrammed . | . . . Reused . | . . . Traps Extracted . | . . . Installed . | . . . Triggered . | . . . Machines | -11 -10 -9 ---------- Run | Scr Mat Mat Machines Disabled 2 | . 1 1 Max in Single Turn 1 | . 1 1 Machines Sabotaged . | . . . Garrisons Compromised . | . . . Overloaded Fab Kills . | . . . Fab Network Shutdowns . | . . . Hacking | -11 -10 -9 --------- Run | Scr Mat Mat Machines Accessed 6 | . 6 . Terminals 4 | . 4 . Fabricators . | . . . Repair Stations 1 | . 1 . Recycling Units 1 | . 1 . Scanalyzers . | . . . Garrison Access . | . . . Total Hacks 23 | . 23 . Successful 19 | . 19 . Failed 4 | . 4 . Catastrophic . | . . . Database Lockouts . | . . . Manual . | . . . Terminals 10 | . 10 . Fabricators . | . . . Repair Stations 9 | . 9 . Recycling Units 4 | . 4 . Scanalyzers . | . . . Garrison Access . | . . . Terminal Hacks 8 | . 8 . Record 6 | . 6 . Maintenance Status 1 | . 1 . Zone Layout 1 | . 1 . Fabricator Hacks . | . . . Repair Station Hacks 8 | . 8 . Scan Component 4 | . 4 . Repair 3 | . 3 . Refit 1 | . 1 . Recycling Unit Hacks 3 | . 3 . Recycle Component 1 | . 1 . Retrieve Matter 1 | . 1 . Retrieve Components 1 | . 1 . Scanalyzer . | . . . Garrison Access Hacks . | . . . Unauthorized Hacks . | . . . Terminals . | . . . Fabricators . | . . . Repair Stations . | . . . Recycling Units . | . . . Scanalyzers . | . . . Garrison Access . | . . . Data Cores Recovered . | . . . Used . | . . . Hacking Detections 4 | . 4 . Full Trace Events 4 | . 4 . Feedback Events . | . . . Feedback Blocked . | . . . Robot Schematics Acquired . | . . . Robots Built . | . . . Matter . | . . . Time . | . . . Total Robot Build Rating . | . . . Part Schematics Acquired . | . . . Parts Built . | . . . Matter . | . . . Time . | . . . Total Part Build Rating . | . . . Parts Repaired 3 | . 3 . Time 88 | . 88 . Parts Recycled 1 | . 1 . Recycled Matter . | . . . Retrieved Matter . | . . . Retrieved Components 6 | . 6 . Parts Scanalyzed . | . . . Part Schematics Acquired . | . . . Parts Damaged . | . . . Bothacking | -11 -10 -9 ------------ Run | Scr Mat Mat Used RIF Installer . | . . . Robots Hacked . | . . . Non-combat . | . . . Combat . | . . . Robot Hacks Applied . | . . . Relay Couplers Released . | . . . Robots Rewired . | . . . Allies Hacked . | . . . Hacks Repelled . | . . . Allies | -11 -10 -9 -------- Run | Scr Mat Mat Total Allies . | . . . Largest Group . | . . . Highest-Rated Group . | . . . Highest-Rated Ally . | . . . Total Orders . | . . . Ally Attacks . | . . . Total Damage . | . . . Kills . | . . . Allies Corrupted . | . . . Allies Melted . | . . . Intel | -11 -10 -9 ------- Run | Scr Mat Mat Robot Analysis Total . | . . . Derelict Logs Recovered . | . . . Drone Launches . | . . . Drone Recoveries . | . . . Exploration | -11 -10 -9 ------------- Run | Scr Mat Mat Turns Passed 1489 | 141 1033 315 Spaces Moved 835 | 120 609 106 Core 24 | 17 . 7 Treads . | . . . Legs 352 | . 253 99 Wheels 458 | 103 355 . Hover 1 | . 1 . Flight . | . . . Fastest Speed 50 | 50 80 180 Average Speed 131 | 75 128 215 Slowest Speed 700 | 80 570 700 Overloaded Moves . | . . . Propulsion Burnouts . | . . . Robots Hopped . | . . . Cave-ins Triggered . | . . . Exploration Rate (%) 27 | 7 59 17 Regions Visited 2 Branch Regions . Pre-discovered Areas . | . . . Known Exits Taken . | . . . Unknown Exits Taken 2 | 1 1 . Scrap Searched . | . . . Spaces Dug . | . . . Terrain Destroyed 129 | . 43 86 Melee . | . . . Projectile . | . . . AOE 129 | . 43 86 Actions | -11 -10 -9 --------- Run | Scr Mat Mat Total 1078 | 152 772 154 Wait 84 | . 84 . Move 833 | 119 608 106 Hop . | . . . Pick Up 32 | 10 12 10 Fast Attach . | . . . Attach 16 | 6 5 5 Detach . | . . . Swap 15 | 4 7 4 Drop 8 | 2 4 2 Fire 80 | 9 46 25 Melee . | . . . Ram 6 | 2 4 . Kick 4 | . 2 2 Crush . | . . . Escape Stasis . | . . . Rewire . | . . . Trap . | . . . Miscellaneous . | . . . Route ------- -11/Scrapyard -10/Materials (discovered 2 exits: [*Mat x2]) -9/Materials History --------- Turn | Location | Event 2 | -11/Scrapyard | Met Revision 17 59 | -11/Scrapyard | Discovered new exit (range 8) 142 | -11/Scrapyard | Entered Materials 263 | -10/Materials | Discovered new exit (range 12) 317 | -10/Materials | Build established: Mutant 371 | -10/Materials | Discovered new exit (range 15) 880 | -10/Materials | Repaired Aluminum Leg 880 | -10/Materials | Repaired Broken Assault Rifle 906 | -10/Materials | Repaired Datajack 1175 | -10/Materials | Entered another Materials area 1175 | -9/Materials | Evolved 2 slots: Power x1, Utility x1 1331 | -9/Materials | Met 8R-AWN 1409 | -9/Materials | Lost 4 parts (1p1u2w) 1459 | -9/Materials | Core integrity fell below 50% 1480 | -9/Materials | Core integrity fell below 20% 1490 | -9/Materials | Destroyed by Y-45 Defender with Heavy Assault Rifle Last Messages --------------- U-05 Engineer builds a Wall. U-05 Engineer lays Concrete. Aluminum Leg destroyed. U-05 Engineer lays Concrete. Sensor Array destroyed. U-05 Engineer lays Concrete. U-05 Engineer builds a Wall. R-06 Scavenger collects Signal Interpreter. U-05 Engineer lays Concrete. R-06 Scavenger collects Hover Unit. U-05 Engineer builds a Wall. U-05 Engineer lays Concrete. R-06 Scavenger collects Terrain Scan Processor. Lgt. Assault Rifle destroyed. U-05 Engineer lays Concrete. U-05 Engineer builds a Wall. U-05 Engineer lays Concrete. U-05 Engineer builds a Wall. Hvy. Ion Engine destroyed. U-05 Engineer builds a Wall. Map ----- +----------------------------------------------------+ | | | | | | | | | | | | | | | | | | | ?????????????????????????????????????????????????? | | ?????????????????????????????????????????????????? | | ?????????????????????????????????????????????????? | | ?????????????????????????????????????????????????? | | ?????????????????????????????????????????????????? | | ?????????????????????????????????????????????????? | | ?????????????????????????????????????????????????? | | ?????????????????????????????????????????????????? | | ?????????????????????????????????????????????????? | | ?????????????????????????????????????????????????? | | ??????????????????###########????????????????????? | | ??????????????????# ?????????????????????? | | ??????????????????# #?????????????????????? | | ??????????????????# Y #?????????????????????? | | ??????????????????# ]!! #?????????????????????? | | ??????????????????# ]!! #?????????????????????? | | ??????????????????# ! ]!@ #?????????????????????? | | ??????????????????# m #?????????????????????? | | ??????????????????# ##????????????????????? | | ??????????????????# ##???????????????????? | | ????????????########## Y# ##??????????????????? | | ???##????? ? # u############## ???????? | | ? ? ?? ? ?? # ??????? | | ???? ??????? + u ??????? | | ?? ??"????"" """ # ??????? | | ??? ???"? "?" """ # ########### ##???????? | | ??? ? #? """ """ ## u## ######????? #????????? | | ? ? ? ???#?????#### # *# ##??????????????? | | ?##+####?#?#?####### # r# """ ##??????????????? | | ## #??#??#?# / + """ #???????????????? | | ## #??###### # # """ #??#????????????? | | ######### "T" # ##??????????????? | | # % # ####### """ # ########???????????????? | | # # ### # #?#?#??#???????????????? | | # % ############ ####??##????????????????? | | # # ##### # ##???#?#?#??????????????? | | ## # # + #????#?###??????????????? | | # # # """ # ????????????????? | | # # = + """"" # =% ???????????? | | + + # """"" # *** ????????????? | | # # # """" #"=%%%!""" ????????????? | +----------------------------------------------------+ Best States ------------- Heat Dissipation 28 Energy Generation 19 Energy Capacity 430 Matter Stores 300 Matter Capacity 300 Sight Range 16 Robot Scan Range 10 Terrain Scan Range 16 Terrain Scan Density 85 ECM Strength 1 Evasion (%) 50 Item Schematics ----------------- None Robot Schematics ------------------ None Fabricated ------------ Nothing Alien Tech Used ----------------- None Achievements -------------- Let's See Who's Tougher Loot Pinata Risk Taker Challenges ------------ None Game ------ Seed SegregatorSwarmCleaver Manual? 0 Play Time 00:20:02 Cumulative 1.1 hours Start 2020.01.05 @ 00:50:05 End 2020.01.05 @ 01:09:44 Sessions 1 Manual Loads 0 Difficulty Rogue Special Mode None Game No. 3 Rogue 3 Adventurer 0 Explorer 0 Win Type - Total 0 Types 0/0/0/0/0/0/0 Lore% 1 Gallery% 2 Achievement% 3 Wizard Run 0 Options --------- ASCII 0 Keyboard 0 Movement Numpad Keybinds 0 Fullscreen 1 Font 18/SmallcapsGlow Map View 76x50 Tactical HUD 0 Map Filters NONE Filters NONE Steam 1 RUN: f86b1388-3611-4377-81fa-951f1a628dab